[Event "GrandPrix_30.05"]
[Site "Chess.com"]
[Date "2020.05.30"]
[Round "1"]
[White "Bengalas"]
[Black "Spartakus1975"]
[Result "0-1"]
[WhiteElo "2167"]
[BlackElo "2622"]
[TimeControl "600+2"]
[EndTime "8:19:58 PDT"]
[Termination "Spartakus1975 won by resignation"]

1. d4 {[%clk 0:10:01.1]} 1... d5 {[%clk 0:09:59.9]} 2. c4 {[%clk 0:10:01.8]}
2... c6 {[%clk 0:09:59.2]} 3. Nf3 {[%clk 0:10:02.2]} 3... Nf6 {[%clk 0:09:58.9]}
4. e3 {[%clk 0:10:02.7]} 4... Bf5 {[%clk 0:09:55.1]} 5. Nc3 {[%clk 0:10:03.1]}
5... e6 {[%clk 0:09:55.4]} 6. Nh4 {[%clk 0:10:03.7]} 6... Be4 {[%clk 0:09:53.6]}
7. f3 {[%clk 0:10:04.1]} 7... Bg6 {[%clk 0:09:54.5]} 8. Nxg6 {[%clk 0:09:42.2]}
8... hxg6 {[%clk 0:09:54]} 9. Bd3 {[%clk 0:09:43.7]} 9... Bd6 {[%clk 0:09:38.4]}
10. f4 {[%clk 0:09:44.5]} 10... dxc4 {[%clk 0:09:21.2]} 11. Bxc4 {[%clk
0:09:44.6]} 11... c5 {[%clk 0:08:52.9]} 12. d5 {[%clk 0:08:57.9]} 12... e5
{[%clk 0:08:51.4]} 13. O-O {[%clk 0:08:41.4]} 13... a6 {[%clk 0:08:49.5]} 14. a4
{[%clk 0:08:40.4]} 14... Nbd7 {[%clk 0:08:48.9]} 15. Qf3 {[%clk 0:08:22.2]}
15... Qe7 {[%clk 0:08:45]} 16. Bd2 {[%clk 0:08:13.1]} 16... Kf8 {[%clk
0:08:43.7]} 17. a5 {[%clk 0:08:02.9]} 17... Re8 {[%clk 0:08:42.5]} 18. Rfe1
{[%clk 0:06:42.9]} 18... Qd8 {[%clk 0:08:23]} 19. Na4 {[%clk 0:06:16.4]} 19...
g5 {[%clk 0:08:07]} 20. g3 {[%clk 0:05:13.6]} 20... gxf4 {[%clk 0:07:46.2]} 21.
exf4 {[%clk 0:05:10.3]} 21... Qc7 {[%clk 0:07:32.2]} 22. Nc3 {[%clk 0:03:13.9]}
22... exf4 {[%clk 0:07:19.9]} 23. Rxe8+ {[%clk 0:03:14.4]} 23... Nxe8 {[%clk
0:07:19.6]} 24. gxf4 {[%clk 0:03:13.8]} 24... Nef6 {[%clk 0:07:15.7]} 25. Ne2
{[%clk 0:02:46.2]} 25... Kg8 {[%clk 0:06:43.8]} 26. Be1 {[%clk 0:02:33.8]} 26...
Nf8 {[%clk 0:06:38]} 27. Bg3 {[%clk 0:02:33]} 27... Ng6 {[%clk 0:06:36.6]} 28.
Qf2 {[%clk 0:01:34.5]} 28... Qd7 {[%clk 0:06:12.9]} 29. b3 {[%clk 0:01:27.4]}
29... Qg4 {[%clk 0:06:05.7]} 30. Rf1 {[%clk 0:01:13.4]} 30... Nh4 {[%clk
0:05:41.6]} 31. Bd3 {[%clk 0:00:43.7]} 31... Nxd5 {[%clk 0:05:17.4]} 32. Be4
{[%clk 0:00:40.9]} 32... Rh5 {[%clk 0:04:56]} 33. Kh1 {[%clk 0:00:23.4]} 33...
Nf6 {[%clk 0:04:38.2]} 34. Bxb7 {[%clk 0:00:22.8]} 34... Qd7 {[%clk 0:04:26.8]}
35. Bf3 {[%clk 0:00:10]} 35... Nxf3 {[%clk 0:04:26.6]} 36. Qxf3 {[%clk
0:00:11.5]} 36... Rd5 {[%clk 0:04:22.2]} 37. Bh4 {[%clk 0:00:09.5]} 37... Be7
{[%clk 0:04:22.3]} 38. Rg1 {[%clk 0:00:07.8]} 38... Rd3 {[%clk 0:04:11.7]} 39.
Qa8+ {[%clk 0:00:08.3]} 39... Kh7 {[%clk 0:04:08.9]} 40. Qg2 {[%clk 0:00:09]}
40... g6 {[%clk 0:04:04]} 41. Nc1 {[%clk 0:00:08.9]} 41... Rd2 {[%clk 0:04:01]}
42. Qf3 {[%clk 0:00:09.7]} 42... Qf5 {[%clk 0:03:54.9]} 43. Bg3 {[%clk
0:00:06.5]} 43... Bd6 {[%clk 0:03:34]} 44. Qe3 {[%clk 0:00:06.6]} 44... Qd5+
{[%clk 0:03:32.1]} 0-1

[Event "GrandPrix_30.05"]
[Site "Chess.com"]
[Date "2020.05.30"]
[Round "1"]
[White "TheNextLevelFan"]
[Black "sahidi"]
[Result "1-0"]
[WhiteElo "2598"]
[BlackElo "2157"]
[TimeControl "600+2"]
[EndTime "8:20:13 PDT"]
[Termination "TheNextLevelFan won by checkmate"]

1. d4 {[%clk 0:10:01.6]} 1... Nf6 {[%clk 0:10:00.3]} 2. c4 {[%clk 0:10:01.8]}
2... e6 {[%clk 0:09:58.8]} 3. Nf3 {[%clk 0:10:02.4]} 3... d5 {[%clk 0:09:58.1]}
4. g3 {[%clk 0:10:01.7]} 4... Be7 {[%clk 0:09:54.6]} 5. Bg2 {[%clk 0:10:02.7]}
5... O-O {[%clk 0:09:54]} 6. O-O {[%clk 0:10:03.1]} 6... dxc4 {[%clk 0:09:54.2]}
7. Qc2 {[%clk 0:10:04.2]} 7... a6 {[%clk 0:09:54.5]} 8. a4 {[%clk 0:09:58.5]}
8... Nbd7 {[%clk 0:09:54.8]} 9. Qxc4 {[%clk 0:09:50.7]} 9... c5 {[%clk
0:09:53.6]} 10. Rd1 {[%clk 0:09:40.2]} 10... b5 {[%clk 0:09:51.8]} 11. Qc2
{[%clk 0:09:32.2]} 11... Bb7 {[%clk 0:09:48.1]} 12. Bg5 {[%clk 0:08:43.8]} 12...
Qb6 {[%clk 0:09:43.1]} 13. Nc3 {[%clk 0:08:16.6]} 13... b4 {[%clk 0:09:36.7]}
14. a5 {[%clk 0:08:06.9]} 14... Qa7 {[%clk 0:09:37]} 15. Na4 {[%clk 0:08:00.7]}
15... Rac8 {[%clk 0:09:37.2]} 16. Bxf6 {[%clk 0:07:48.8]} 16... Bxf6 {[%clk
0:09:36.2]} 17. dxc5 {[%clk 0:07:25.9]} 17... Nxc5 {[%clk 0:09:34.5]} 18. Nb6
{[%clk 0:07:23.5]} 18... Rc7 {[%clk 0:09:19.8]} 19. Rac1 {[%clk 0:06:00.8]}
19... Be4 {[%clk 0:09:13.9]} 20. Qd2 {[%clk 0:05:48.1]} 20... Nb3 {[%clk
0:09:08.9]} 21. Rxc7 {[%clk 0:05:48.4]} 21... Qxc7 {[%clk 0:09:07.8]} 22. Qxb4
{[%clk 0:05:47.3]} 22... Bxf3 {[%clk 0:09:01.8]} 23. Bxf3 {[%clk 0:05:43.9]}
23... Qc2 {[%clk 0:08:58]} 24. e3 {[%clk 0:05:31.6]} 24... Qxb2 {[%clk
0:08:49.6]} 25. Nd7 {[%clk 0:05:30]} 25... Re8 {[%clk 0:08:39.3]} 26. Nxf6+
{[%clk 0:05:19.8]} 26... gxf6 {[%clk 0:08:39.2]} 27. Bc6 {[%clk 0:04:45.2]}
27... Qc2 {[%clk 0:08:27.5]} 28. Qg4+ {[%clk 0:04:45.2]} 28... Kf8 {[%clk
0:08:23.8]} 29. Bxe8 {[%clk 0:04:44.5]} 29... Kxe8 {[%clk 0:08:19.3]} 30. Qa4+
{[%clk 0:04:41.3]} 30... Kf8 {[%clk 0:08:17.2]} 31. Qb4+ {[%clk 0:04:32.3]}
31... Kg7 {[%clk 0:08:13.3]} 32. Qg4+ {[%clk 0:04:32.3]} 32... Qg6 {[%clk
0:08:07.5]} 33. Qxg6+ {[%clk 0:04:16.9]} 33... hxg6 {[%clk 0:08:09.4]} 34. Rd6
{[%clk 0:04:16.9]} 34... Nxa5 {[%clk 0:08:07]} 35. Rxa6 {[%clk 0:04:18.4]} 35...
Nc4 {[%clk 0:08:07.4]} 36. h4 {[%clk 0:04:18.8]} 36... f5 {[%clk 0:08:06.5]} 37.
Kg2 {[%clk 0:04:15.1]} 37... Ne5 {[%clk 0:08:03.9]} 38. f3 {[%clk 0:04:09.6]}
38... Nd7 {[%clk 0:08:01.2]} 39. Ra7 {[%clk 0:04:08.3]} 39... Nf6 {[%clk
0:07:59.8]} 40. Kf2 {[%clk 0:04:09.5]} 40... Nh5 {[%clk 0:07:56.9]} 41. g4
{[%clk 0:04:04.5]} 41... fxg4 {[%clk 0:07:57.5]} 42. fxg4 {[%clk 0:04:06.4]}
42... Nf6 {[%clk 0:07:57.4]} 43. Kf3 {[%clk 0:04:07.7]} 43... Nd5 {[%clk
0:07:45.8]} 44. e4 {[%clk 0:04:06]} 44... Nf6 {[%clk 0:07:44.9]} 45. Kf4 {[%clk
0:04:01.5]} 45... Kg8 {[%clk 0:07:40.5]} 46. g5 {[%clk 0:03:55.6]} 46... Nh5+
{[%clk 0:07:39.1]} 47. Ke5 {[%clk 0:03:56.4]} 47... Kf8 {[%clk 0:07:30.7]} 48.
Kd6 {[%clk 0:03:54.4]} 48... Ng3 {[%clk 0:07:29.5]} 49. Ra4 {[%clk 0:03:42.7]}
49... Ne2 {[%clk 0:06:56.1]} 50. Ra8+ {[%clk 0:03:40.5]} 50... Kg7 {[%clk
0:06:53.9]} 51. Ke7 {[%clk 0:03:21.5]} 51... Ng3 {[%clk 0:06:50.8]} 52. Rf8
{[%clk 0:03:18.9]} 52... Nxe4 {[%clk 0:06:48.8]} 53. Rxf7+ {[%clk 0:03:20.3]}
53... Kg8 {[%clk 0:06:45.7]} 54. Rf6 {[%clk 0:03:17.1]} 54... Kg7 {[%clk
0:06:41]} 55. Rxe6 {[%clk 0:03:14.2]} 55... Ng3 {[%clk 0:06:41.5]} 56. Ke8
{[%clk 0:02:40.1]} 56... Nf5 {[%clk 0:06:37.8]} 57. Re7+ {[%clk 0:02:26.5]}
57... Kg8 {[%clk 0:06:30.6]} 58. Re6 {[%clk 0:02:19.6]} 58... Kg7 {[%clk
0:06:27.3]} 59. Ra6 {[%clk 0:02:15.8]} 59... Nxh4 {[%clk 0:06:22.9]} 60. Ra7+
{[%clk 0:02:15.7]} 60... Kg8 {[%clk 0:06:19.4]} 61. Ke7 {[%clk 0:02:17.1]} 61...
Kh7 {[%clk 0:05:09.4]} 62. Kf6+ {[%clk 0:02:16.2]} 62... Kh8 {[%clk 0:05:04.1]}
63. Ra4 {[%clk 0:02:04]} 63... Nf3 {[%clk 0:05:02.1]} 64. Kxg6 {[%clk
0:01:50.4]} 64... Ne5+ {[%clk 0:05:00.4]} 65. Kf6 {[%clk 0:01:49.9]} 65... Nd7+
{[%clk 0:04:55]} 66. Ke7 {[%clk 0:01:49.1]} 66... Ne5 {[%clk 0:04:45.2]} 67. Ke6
{[%clk 0:01:44.9]} 67... Ng6 {[%clk 0:04:40.4]} 68. Kf6 {[%clk 0:01:43.6]} 68...
Nf8 {[%clk 0:04:37.7]} 69. Ra8 {[%clk 0:01:41.6]} 69... Kh7 {[%clk 0:04:21.3]}
70. Ra7+ {[%clk 0:01:12.1]} 70... Kh8 {[%clk 0:04:12.1]} 71. g6 {[%clk
0:01:12.1]} 71... Kg8 {[%clk 0:04:10.3]} 72. Ra8 {[%clk 0:01:12.5]} 72... Kh8
{[%clk 0:04:07.7]} 73. Rxf8# {[%clk 0:01:14.4]} 1-0

[Event "GrandPrix_30.05"]
[Site "Chess.com"]
[Date "2020.05.30"]
[Round "1"]
[White "SantoBlue"]
[Black "Ave_Mariia"]
[Result "1-0"]
[WhiteElo "2563"]
[BlackElo "2161"]
[TimeControl "600+2"]
[EndTime "8:20:16 PDT"]
[Termination "SantoBlue won by resignation"]

1. Nf3 {[%clk 0:09:54.8]} 1... Nf6 {[%clk 0:09:59.9]} 2. g3 {[%clk 0:09:50.9]}
2... e6 {[%clk 0:09:58.4]} 3. c4 {[%clk 0:09:47.9]} 3... d5 {[%clk 0:09:55.5]}
4. Bg2 {[%clk 0:09:47.3]} 4... Be7 {[%clk 0:09:53.9]} 5. b3 {[%clk 0:09:35.8]}
5... O-O {[%clk 0:09:51.3]} 6. Bb2 {[%clk 0:09:35]} 6... c6 {[%clk 0:09:44.4]}
7. O-O {[%clk 0:09:34]} 7... b6 {[%clk 0:09:42]} 8. d3 {[%clk 0:09:30.4]} 8...
Bb7 {[%clk 0:09:39.2]} 9. Nbd2 {[%clk 0:09:29.5]} 9... Nbd7 {[%clk 0:09:37.4]}
10. Qc2 {[%clk 0:09:22.5]} 10... Qc7 {[%clk 0:09:21.5]} 11. e4 {[%clk
0:09:16.8]} 11... dxe4 {[%clk 0:08:24.9]} 12. dxe4 {[%clk 0:09:14.9]} 12... c5
{[%clk 0:07:47.7]} 13. e5 {[%clk 0:09:05.8]} 13... Ng4 {[%clk 0:07:41.2]} 14.
Rfe1 {[%clk 0:08:57.5]} 14... Rfd8 {[%clk 0:07:22.5]} 15. h3 {[%clk 0:08:33.5]}
15... Nh6 {[%clk 0:07:23.2]} 16. g4 {[%clk 0:08:34.8]} 16... Nf8 {[%clk
0:07:07.7]} 17. Ne4 {[%clk 0:08:19.9]} 17... Ng6 {[%clk 0:07:07.2]} 18. Re3
{[%clk 0:06:34.9]} 18... Nf4 {[%clk 0:05:59.6]} 19. Bf1 {[%clk 0:06:33.6]} 19...
Rd7 {[%clk 0:05:15.7]} 20. Nfg5 {[%clk 0:05:52]} 20... g6 {[%clk 0:04:17.2]} 21.
Rae1 {[%clk 0:05:28.3]} 21... Rad8 {[%clk 0:03:03.9]} 22. Nf3 {[%clk 0:05:11.2]}
22... Kh8 {[%clk 0:02:39]} 23. Nd6 {[%clk 0:05:00.7]} 23... Kg8 {[%clk
0:02:28.7]} 24. Qc3 {[%clk 0:04:49.2]} 24... g5 {[%clk 0:01:50.4]} 25. Nd2
{[%clk 0:03:58.6]} 25... Qc6 {[%clk 0:01:30.1]} 26. N2e4 {[%clk 0:03:54.2]}
26... Ba8 {[%clk 0:01:25.8]} 27. f3 {[%clk 0:03:50.2]} 27... Kg7 {[%clk
0:01:06.1]} 28. Ng3 {[%clk 0:03:20.8]} 28... Ng8 {[%clk 0:00:57.8]} 29. Bd3
{[%clk 0:02:55.4]} 29... f6 {[%clk 0:00:55]} 30. Be4 {[%clk 0:02:43.3]} 30...
Qc7 {[%clk 0:00:43.2]} 31. Bxa8 {[%clk 0:02:44.1]} 31... Rxa8 {[%clk 0:00:45.1]}
32. Nge4 {[%clk 0:02:42.3]} 32... Bxd6 {[%clk 0:00:20.9]} 33. exd6 {[%clk
0:02:42]} 33... Qc6 {[%clk 0:00:21.9]} 34. Nxf6 {[%clk 0:02:37.8]} 34... Rf7
{[%clk 0:00:13.4]} 35. Nxg8+ {[%clk 0:02:31.6]} 1-0

[Event "GrandPrix_30.05"]
[Site "Chess.com"]
[Date "2020.05.30"]
[Round "1"]
[White "ChessQueen"]
[Black "Azatic"]
[Result "1-0"]
[WhiteElo "2192"]
[BlackElo "2336"]
[TimeControl "600+2"]
[EndTime "8:20:29 PDT"]
[Termination "ChessQueen won by checkmate"]

1. e4 {[%clk 0:10:01.9]} 1... c5 {[%clk 0:10:01]} 2. c3 {[%clk 0:10:01.5]} 2...
d5 {[%clk 0:09:59.6]} 3. exd5 {[%clk 0:10:01.8]} 3... Qxd5 {[%clk 0:10:01.5]} 4.
d4 {[%clk 0:10:02.7]} 4... Nf6 {[%clk 0:10:02]} 5. Nf3 {[%clk 0:10:03.8]} 5...
e6 {[%clk 0:10:03.1]} 6. Be2 {[%clk 0:10:04.2]} 6... Nc6 {[%clk 0:10:03.6]} 7.
O-O {[%clk 0:10:01.5]} 7... cxd4 {[%clk 0:10:04.5]} 8. cxd4 {[%clk 0:10:02.3]}
8... Be7 {[%clk 0:10:05]} 9. Nc3 {[%clk 0:10:03.4]} 9... Qd6 {[%clk 0:10:05.4]}
10. Nb5 {[%clk 0:10:04.3]} 10... Qd8 {[%clk 0:10:02.7]} 11. Bf4 {[%clk 0:10:05]}
11... Nd5 {[%clk 0:10:03.3]} 12. Bg3 {[%clk 0:10:04.8]} 12... a6 {[%clk
0:10:04.3]} 13. Nc3 {[%clk 0:10:05.2]} 13... Nxc3 {[%clk 0:10:05.3]} 14. bxc3
{[%clk 0:10:06.1]} 14... O-O {[%clk 0:10:06]} 15. Bd3 {[%clk 0:10:05.5]} 15...
b5 {[%clk 0:09:48.1]} 16. a4 {[%clk 0:09:35.1]} 16... b4 {[%clk 0:08:58.8]} 17.
Be4 {[%clk 0:09:26.8]} 17... Bb7 {[%clk 0:07:02.7]} 18. cxb4 {[%clk 0:09:25.9]}
18... f5 {[%clk 0:06:43.1]} 19. Bxc6 {[%clk 0:08:36.4]} 19... Bxc6 {[%clk
0:06:45]} 20. Be5 {[%clk 0:08:34.3]} 20... Qd7 {[%clk 0:05:06.1]} 21. Qd2 {[%clk
0:07:53.6]} 21... Bxa4 {[%clk 0:04:10.7]} 22. Rfc1 {[%clk 0:06:56.4]} 22... Rac8
{[%clk 0:04:01.2]} 23. h3 {[%clk 0:06:15]} 23... Bb5 {[%clk 0:03:45.1]} 24. Bf4
{[%clk 0:05:55.7]} 24... Qd5 {[%clk 0:03:40]} 25. Ne5 {[%clk 0:05:36.9]} 25...
Bf6 {[%clk 0:02:51.4]} 26. Rc5 {[%clk 0:05:09.6]} 26... Rxc5 {[%clk 0:02:50.6]}
27. bxc5 {[%clk 0:05:10.1]} 27... h6 {[%clk 0:02:51]} 28. Qa2 {[%clk 0:04:33.2]}
28... Qxa2 {[%clk 0:02:25.3]} 29. Rxa2 {[%clk 0:04:35.1]} 29... Rd8 {[%clk
0:02:25.8]} 30. c6 {[%clk 0:03:40.6]} 30... g5 {[%clk 0:02:06.7]} 31. Nd7 {[%clk
0:02:56.9]} 31... gxf4 {[%clk 0:01:36.9]} 32. Nxf6+ {[%clk 0:02:54.5]} 32... Kf7
{[%clk 0:01:36.3]} 33. Nd7 {[%clk 0:02:49.2]} 33... Ke7 {[%clk 0:01:03.2]} 34.
Nc5 {[%clk 0:02:39.3]} 34... Bxc6 {[%clk 0:00:44]} 35. Rxa6 {[%clk 0:02:37.5]}
35... Bd5 {[%clk 0:00:41.2]} 36. Ra7+ {[%clk 0:02:36.6]} 36... Kd6 {[%clk
0:00:33.1]} 37. Nd3 {[%clk 0:02:24.6]} 37... f3 {[%clk 0:00:23.6]} 38. Ne5
{[%clk 0:02:23.2]} 38... Rg8 {[%clk 0:00:13]} 39. Rd7# {[%clk 0:02:23]} 1-0

[Event "GrandPrix_30.05"]
[Site "Chess.com"]
[Date "2020.05.30"]
[Round "1"]
[White "gygygygygyggygygygy"]
[Black "BogdanBelyakov89"]
[Result "1/2-1/2"]
[WhiteElo "2001"]
[BlackElo "2251"]
[TimeControl "600+2"]
[EndTime "8:20:30 PDT"]
[Termination "Game drawn by repetition"]

1. e4 {[%clk 0:10:01.2]} 1... e5 {[%clk 0:10:00.2]} 2. Nf3 {[%clk 0:10:00.2]}
2... Nc6 {[%clk 0:10:01.1]} 3. Nc3 {[%clk 0:10:00.8]} 3... Nf6 {[%clk
0:10:01.5]} 4. a3 {[%clk 0:10:01.7]} 4... d5 {[%clk 0:09:57.4]} 5. Bb5 {[%clk
0:10:01]} 5... Nxe4 {[%clk 0:09:00.1]} 6. Nxe5 {[%clk 0:10:00.4]} 6... Qf6
{[%clk 0:07:47.5]} 7. Nf3 {[%clk 0:10:00.1]} 7... Nxc3 {[%clk 0:07:35.1]} 8.
dxc3 {[%clk 0:09:58]} 8... Be6 {[%clk 0:07:30.6]} 9. O-O {[%clk 0:09:55.5]} 9...
Bd6 {[%clk 0:07:22.9]} 10. Nd4 {[%clk 0:09:43.2]} 10... O-O {[%clk 0:07:14.8]}
11. Nxe6 {[%clk 0:09:38.3]} 11... fxe6 {[%clk 0:07:12.8]} 12. c4 {[%clk
0:09:35.8]} 12... dxc4 {[%clk 0:06:44.7]} 13. Bxc6 {[%clk 0:09:26.9]} 13... bxc6
{[%clk 0:06:44.5]} 14. Qg4 {[%clk 0:09:25.4]} 14... c3 {[%clk 0:06:37.3]} 15.
bxc3 {[%clk 0:09:09]} 15... Qxc3 {[%clk 0:06:21.6]} 16. Qxe6+ {[%clk 0:09:05.5]}
16... Kh8 {[%clk 0:06:21.2]} 17. Be3 {[%clk 0:08:14]} 17... Qxc2 {[%clk
0:06:13.9]} 18. Rfc1 {[%clk 0:07:59]} 18... Qa4 {[%clk 0:05:46.5]} 19. Qc4
{[%clk 0:07:51.1]} 19... Qxc4 {[%clk 0:05:42.2]} 20. Rxc4 {[%clk 0:07:50.4]}
20... Rf6 {[%clk 0:05:42.7]} 21. g3 {[%clk 0:07:42.6]} 21... a6 {[%clk
0:05:12.6]} 22. Rxc6 {[%clk 0:07:19.5]} 22... Kg8 {[%clk 0:04:34.3]} 23. a4
{[%clk 0:07:16.5]} 23... Kf7 {[%clk 0:04:30.6]} 24. Re1 {[%clk 0:06:48.1]} 24...
Re6 {[%clk 0:04:27.5]} 25. Rec1 {[%clk 0:06:20.2]} 25... Re4 {[%clk 0:04:25]}
26. Bc5 {[%clk 0:05:37.3]} 26... Rxa4 {[%clk 0:03:37.8]} 27. Bxd6 {[%clk
0:05:35.3]} 27... cxd6 {[%clk 0:03:39.7]} 28. Rxd6 {[%clk 0:05:34]} 28... Ra7
{[%clk 0:03:39.1]} 29. Rcc6 {[%clk 0:05:22.4]} 29... h6 {[%clk 0:03:11.4]} 30.
h4 {[%clk 0:05:20.5]} 30... Ra1+ {[%clk 0:03:04]} 31. Kg2 {[%clk 0:05:20.3]}
31... a5 {[%clk 0:03:05.3]} 32. Ra6 {[%clk 0:05:19]} 32... Rxa6 {[%clk
0:03:06.5]} 33. Rxa6 {[%clk 0:05:18.6]} 33... a4 {[%clk 0:03:08.4]} 34. Kf3
{[%clk 0:05:00.9]} 34... a3 {[%clk 0:03:06.6]} 35. Kg2 {[%clk 0:05:01]} 35...
Ke7 {[%clk 0:02:41.8]} 36. Kf3 {[%clk 0:04:58.7]} 36... Kd7 {[%clk 0:02:41.4]}
37. Ra7+ {[%clk 0:04:45.5]} 37... Kc6 {[%clk 0:02:39.6]} 38. Rxg7 {[%clk
0:04:37.1]} 38... Kb6 {[%clk 0:02:30.3]} 39. Rg8 {[%clk 0:04:29.8]} 39... Kb5
{[%clk 0:01:51.9]} 40. Ra8 {[%clk 0:04:27.4]} 40... Kb4 {[%clk 0:01:51.4]} 41.
g4 {[%clk 0:04:08.6]} 41... Rc1 {[%clk 0:01:50.5]} 42. g5 {[%clk 0:03:59.7]}
42... hxg5 {[%clk 0:01:09.2]} 43. hxg5 {[%clk 0:03:59]} 43... Kb3 {[%clk
0:01:05.9]} 44. Rb8+ {[%clk 0:03:38.6]} 44... Ka4 {[%clk 0:01:04.7]} 45. Ra8+
{[%clk 0:03:05]} 45... Kb3 {[%clk 0:01:03.9]} 46. Rb8+ {[%clk 0:03:04.3]} 46...
Ka4 {[%clk 0:00:49.2]} 47. Ra8+ {[%clk 0:02:29.7]} 47... Kb3 {[%clk 0:00:48.6]}
1/2-1/2

[Event "GrandPrix_30.05"]
[Site "Chess.com"]
[Date "2020.05.30"]
[Round "1"]
[White "Karateloru"]
[Black "Fandorine"]
[Result "0-1"]
[WhiteElo "2135"]
[BlackElo "2517"]
[TimeControl "600+2"]
[EndTime "8:20:34 PDT"]
[Termination "Fandorine won by resignation"]

1. e4 {[%clk 0:10:00.5]} 1... c5 {[%clk 0:09:57.1]} 2. Nf3 {[%clk 0:10:00.5]}
2... d6 {[%clk 0:09:58.3]} 3. Bb5+ {[%clk 0:10:00.7]} 3... Nd7 {[%clk
0:09:59.4]} 4. c4 {[%clk 0:09:59.9]} 4... Nf6 {[%clk 0:09:58.2]} 5. Nc3 {[%clk
0:10:00.3]} 5... g6 {[%clk 0:09:58.4]} 6. O-O {[%clk 0:09:56.3]} 6... Bg7 {[%clk
0:09:59.1]} 7. d4 {[%clk 0:09:56.6]} 7... cxd4 {[%clk 0:09:57]} 8. Qxd4 {[%clk
0:09:58.5]} 8... O-O {[%clk 0:09:53.4]} 9. Bxd7 {[%clk 0:09:53.3]} 9... Bxd7
{[%clk 0:09:51.6]} 10. Qd3 {[%clk 0:09:53.7]} 10... Bg4 {[%clk 0:09:21.8]} 11.
Bd2 {[%clk 0:09:39.4]} 11... Nd7 {[%clk 0:08:27.5]} 12. Rac1 {[%clk 0:09:18.1]}
12... a6 {[%clk 0:08:04.5]} 13. h3 {[%clk 0:08:52.5]} 13... Nc5 {[%clk
0:07:48.2]} 14. Qe2 {[%clk 0:08:30.6]} 14... Bd7 {[%clk 0:07:44]} 15. Rfd1
{[%clk 0:06:23.3]} 15... Rc8 {[%clk 0:06:17.4]} 16. e5 {[%clk 0:06:07.1]} 16...
dxe5 {[%clk 0:06:01.8]} 17. Nxe5 {[%clk 0:06:05]} 17... Bxe5 {[%clk 0:05:48.5]}
18. Qxe5 {[%clk 0:06:04]} 18... Nd3 {[%clk 0:05:50]} 19. Qd4 {[%clk 0:06:04.5]}
19... Be6 {[%clk 0:04:16.9]} 20. Nd5 {[%clk 0:05:38.4]} 20... Nxc1 {[%clk
0:03:57.8]} 21. Bxc1 {[%clk 0:05:38]} 21... Bxd5 {[%clk 0:03:33.1]} 22. Bh6
{[%clk 0:05:32.6]} 22... e5 {[%clk 0:03:34.2]} 23. Qxe5 {[%clk 0:05:29.8]} 23...
f6 {[%clk 0:03:35.5]} 24. Qg3 {[%clk 0:04:06.9]} 24... Rxc4 {[%clk 0:02:23.6]}
25. Bxf8 {[%clk 0:04:05.1]} 25... Kxf8 {[%clk 0:02:25.5]} 26. Qd3 {[%clk
0:04:03.8]} 26... Rc5 {[%clk 0:02:26.3]} 27. b4 {[%clk 0:04:02]} 27... Rb5
{[%clk 0:02:27.2]} 28. Qc3 {[%clk 0:01:58.8]} 28... Qd6 {[%clk 0:02:02.4]} 29.
a4 {[%clk 0:01:46.8]} 29... Rxb4 {[%clk 0:02:02.9]} 30. Qc8+ {[%clk 0:00:38.7]}
30... Kg7 {[%clk 0:01:54.8]} 31. Rc1 {[%clk 0:00:36.4]} 31... Bc6 {[%clk
0:01:52]} 32. Re1 {[%clk 0:00:35.4]} 32... Re4 {[%clk 0:01:48]} 33. Rc1 {[%clk
0:00:32.9]} 33... Qe6 {[%clk 0:01:46.3]} 34. Qc7+ {[%clk 0:00:32.1]} 34... Qe7
{[%clk 0:01:47.3]} 0-1

[Event "GrandPrix_30.05"]
[Site "Chess.com"]
[Date "2020.05.30"]
[Round "1"]
[White "Andrei_Belozerov"]
[Black "Yaroslav_Remizov"]
[Result "0-1"]
[WhiteElo "2462"]
[BlackElo "2246"]
[TimeControl "600+2"]
[EndTime "8:20:35 PDT"]
[Termination "Yaroslav_Remizov won by resignation"]

1. e4 {[%clk 0:10:00.9]} 1... c6 {[%clk 0:10:00.3]} 2. d4 {[%clk 0:10:01.3]}
2... d5 {[%clk 0:10:01.2]} 3. Nd2 {[%clk 0:10:02.8]} 3... dxe4 {[%clk
0:10:01.9]} 4. Nxe4 {[%clk 0:10:03.8]} 4... Nf6 {[%clk 0:10:03.3]} 5. Nxf6+
{[%clk 0:10:04.6]} 5... exf6 {[%clk 0:10:05.2]} 6. c3 {[%clk 0:10:05.7]} 6...
Bd6 {[%clk 0:10:05.9]} 7. Bd3 {[%clk 0:10:06.6]} 7... O-O {[%clk 0:10:06.6]} 8.
Qc2 {[%clk 0:10:07.6]} 8... Re8+ {[%clk 0:10:08]} 9. Ne2 {[%clk 0:10:08.1]} 9...
h5 {[%clk 0:10:09.4]} 10. Be3 {[%clk 0:10:03]} 10... Nd7 {[%clk 0:10:10]} 11.
O-O {[%clk 0:09:56.5]} 11... Nf8 {[%clk 0:10:05.8]} 12. Rfe1 {[%clk 0:09:06.4]}
12... Qc7 {[%clk 0:09:55.5]} 13. h3 {[%clk 0:09:04.8]} 13... Be6 {[%clk
0:09:55.6]} 14. c4 {[%clk 0:08:54.2]} 14... Qd7 {[%clk 0:09:39.6]} 15. Ng3
{[%clk 0:08:11.5]} 15... h4 {[%clk 0:08:19.8]} 16. Nf5 {[%clk 0:08:06.7]} 16...
Bc7 {[%clk 0:08:15.6]} 17. Nxh4 {[%clk 0:07:23.5]} 17... Bxh3 {[%clk 0:07:53.3]}
18. Bf5 {[%clk 0:05:39.1]} 18... Bxf5 {[%clk 0:07:37.4]} 19. Qxf5 {[%clk
0:05:36.5]} 19... Qd6 {[%clk 0:07:22]} 20. g3 {[%clk 0:05:28]} 20... g6 {[%clk
0:06:07.8]} 21. Qf3 {[%clk 0:05:24.3]} 21... f5 {[%clk 0:06:00.5]} 22. Ng2
{[%clk 0:04:46.5]} 22... Qb4 {[%clk 0:04:31.9]} 23. b3 {[%clk 0:03:34.8]} 23...
Re4 {[%clk 0:02:40.9]} 24. Re2 {[%clk 0:03:32.8]} 24... Rae8 {[%clk 0:01:55]}
25. Bd2 {[%clk 0:02:16.7]} 25... Qd6 {[%clk 0:01:52.8]} 26. Bf4 {[%clk
0:02:12.8]} 26... Qxd4 {[%clk 0:01:48.9]} 27. Ree1 {[%clk 0:01:45.4]} 27... Bxf4
{[%clk 0:01:36.1]} 28. gxf4 {[%clk 0:01:45.2]} 28... Rxe1+ {[%clk 0:01:35.1]}
29. Rxe1 {[%clk 0:01:45.4]} 29... Rxe1+ {[%clk 0:01:33]} 30. Nxe1 {[%clk
0:01:46.3]} 30... Ne6 {[%clk 0:01:34.3]} 31. Nd3 {[%clk 0:01:41.4]} 31... Qa1+
{[%clk 0:01:34.3]} 32. Kh2 {[%clk 0:01:39.2]} 32... Qxa2 {[%clk 0:01:34.2]} 33.
Ne5 {[%clk 0:01:38.5]} 33... Qd2 {[%clk 0:01:26]} 34. Kg3 {[%clk 0:01:37.3]}
34... Nd4 {[%clk 0:01:22.6]} 35. Qh1 {[%clk 0:01:29.7]} 35... Ne2+ {[%clk
0:01:15.9]} 36. Kf3 {[%clk 0:01:26.1]} 36... Qxf4+ {[%clk 0:01:13.9]} 37. Kxe2
{[%clk 0:01:27.1]} 37... Qxe5+ {[%clk 0:01:15.2]} 38. Kd3 {[%clk 0:01:24.8]}
38... Qe4+ {[%clk 0:01:10.4]} 0-1